bitfinex/quotes_ETHUSD_20260306
["timestamp","ask_amount","ask_price","bid_price","bid_amount"]
[1772832099756,2.58811471,1977.4,1977.3,0.0011]
[1772832101886,1.32282828,1977.3,1977.1,0.0011]
[1772832104086,2.5872426,1977.2,1977.1,0.0011]
[1772832106801,0.001,1977.4,1977.1,1.23129056]
[1772832107002,2.5881189,1977.4,1977.1,1.23129056]
[1772832107165,1.32282828,1977.3,1977.1,0.0011]
[1772832110169,1.32282828,1977.2,1977.1,0.0011]
[1772832111106,1.32282828,1977.1,1976.8,0.0011]
[1772832113703,1.32282828,1977.0,1976.8,0.0011]
[1772832115695,2.58743448,1976.9,1976.8,0.0011]
[1772832116073,2.58743448,1976.9,1976.6,0.0011]
[1772832116273,1.2757497,1976.8,1976.6,0.0011]
[1772832118401,2.54043413,1976.8,1976.6,0.0011]
[1772832120304,1.2757497,1976.7,1976.6,0.0011]
[1772832121013,1.2757497,1976.7,1975.9,1.417]
[1772832121014,1.2757497,1976.6,1975.9,1.417]
[1772832121312,1.2757497,1976.6,1975.6,1.15572865]
[1772832121313,1.2757497,1976.3,1975.6,1.15572865]
[1772832121776,1.30414102,1976.6,1975.6,1.15572865]
[1772832122603,1.30414102,1976.4,1975.8,1.22761495]
[1772832123778,1.30414102,1977.0,1976.4,0.0011]
[1772832125022,1.30414102,1976.8,1976.4,0.0011]
[1772832125497,1.30414102,1977.0,1976.4,1.22871495]
[1772832126183,1.30414102,1977.0,1976.4,0.0011]
[1772832126674,1.30414102,1976.8,1976.1,1.22761495]
[1772832127406,1.30414102,1976.6,1976.1,2.4926773]
[1772832131709,1.30414102,1976.5,1976.1,2.4926773]
[1772832132282,1.30414102,1976.5,1976.1,0.59083437]
[1772832132482,1.30414102,1976.5,1976.1,1.85589672]
[1772832133207,1.30414102,1976.5,1976.0,3.24904433]
[1772832133730,1.30414102,1976.5,1976.0,1.9838931]
[1772832133731,1.26492612,1976.4,1976.0,1.9838931]
[1772832134014,1.26492612,1976.4,1975.9,1.26520049]
[1772832134015,1.30414102,1976.3,1975.9,2.63924621]
[1772832134308,1.30414102,1976.3,1975.9,3.29779077]
[1772832135914,1.30414102,1976.2,1975.9,3.29779077]
[1772832137009,1.30414102,1976.4,1976.0,0.65386321]
[1772832139119,1.30414102,1976.4,1976.1,1.26511816]
[1772832139305,1.30414102,1976.4,1976.1,1.91431282]
[1772832139506,1.30414102,1976.4,1976.0,1.26515061]
[1772832139691,1.30514102,1976.5,1976.1,0.64687544]
[1772832141609,1.30514102,1976.5,1976.2,1.26505414]
[1772832143903,1.30514102,1976.5,1976.2,1.90270763]
[1772832144098,0.001,1976.5,1976.3,0.63765349]
[1772832145991,0.001,1976.5,1976.4,1.8980006]
[1772832149132,1.30414102,1976.4,1975.4,0.0011]
[1772832149325,0.001,1976.5,1974.2,1.15911105]
[1772832149326,1.30414102,1975.4,1974.2,1.15911105]
[1772832149529,1.30414102,1974.9,1974.2,1.15911105]
[1772832150218,1.30414102,1974.9,1974.3,1.15911105]
[1772832150623,1.30414102,1974.8,1974.0,2.62961495]
[1772832150958,1.30414102,1974.8,1974.1,1.22761495]
[1772832152205,1.45221917,1974.7,1974.2,2.80659957]
[1772832153315,1.45221917,1974.7,1974.2,1.54026384]
[1772832154609,1.2660792,1974.6,1974.2,1.54026384]
[1772832155612,2.71829837,1974.6,1974.2,1.54026384]
[1772832156941,1.45221917,1974.9,1974.3,1.54026384]
[1772832157245,1.45221917,1974.9,1974.1,0.07567858]
[1772832158934,1.45221917,1974.9,1974.0,1.402]
[1772832159251,1.52180931,1974.7,1974.0,1.5184688]
[1772832159724,1.52180931,1974.7,1974.3,0.0011]
[1772832161250,1.52180931,1974.5,1974.3,0.0011]
[1772832163221,2.78801676,1974.4,1974.3,0.0011]
[1772832164428,0.017881,1974.3,1974.2,0.0011]
[1772832164838,0.017881,1974.3,1974.2,0.10566424]
[1772832166446,0.017881,1974.3,1974.2,0.0011]
[1772832166753,1.28415258,1974.3,1974.2,0.0011]
[1772832166915,0.017881,1974.3,1974.2,0.0011]
[1772832167116,1.26615643,1974.5,1974.2,0.10166568]
[1772832167346,2.78796574,1974.5,1974.2,0.10166568]
[1772832168526,2.78796574,1974.5,1974.2,0.0011]
[1772832170848,1.52180931,1974.4,1974.2,0.0011]
[1772832171849,1.26627158,1974.3,1974.2,0.0011]
[1772832172054,2.78808089,1974.3,1974.2,0.0011]
[1772832174638,1.52180931,1974.3,1974.2,0.0011]
[1772832174834,2.78808089,1974.3,1974.2,0.0011]
[1772832175659,1.26627158,1974.3,1974.2,0.0011]
[1772832176152,1.26720745,1974.4,1974.2,0.0011]
[1772832176332,1.26721425,1974.4,1974.2,0.08286383]
[1772832178662,0.001,1974.4,1974.2,0.08286383]
[1772832178829,1.26613138,1974.6,1974.3,0.07654643]
[1772832179034,2.78844069,1974.6,1974.3,0.07654643]
[1772832179246,2.78844069,1974.6,1974.2,0.0011]
[1772832179447,2.78844069,1974.6,1974.2,0.07556492]
[1772832182959,1.26613138,1974.6,1974.2,0.07556492]
[1772832183272,1.26613138,1974.6,1974.3,0.06925464]
[1772832183785,2.78835338,1974.7,1974.4,0.0671072]
[1772832184072,2.78835338,1974.7,1974.5,1.428]
[1772832186652,5.0638624,1974.8,1974.5,1.48864549]
[1772832187068,6.58617171,1974.8,1974.5,1.48864549]
[1772832187780,5.1059339,1974.9,1974.6,0.05848634]
[1772832187960,2.78824321,1974.9,1974.6,0.05848634]
[1772832188646,1.52230931,1974.8,1974.5,1.428]
[1772832190892,1.26601509,1974.7,1974.5,1.428]
[1772832192063,2.7883244,1974.7,1974.5,1.421]
[1772832193812,1.52230931,1974.6,1974.5,1.421]
[1772832194293,1.52230931,1974.6,1974.4,1.422]
[1772832195189,1.26614332,1974.5,1974.4,1.422]
[1772832195491,2.78845263,1974.5,1974.3,1.4231]
[1772832197493,1.52230931,1974.4,1974.3,1.4231]
[1772832199293,2.78851676,1974.4,1974.3,1.4231]
[1772832201328,2.78851676,1974.4,1974.2,1.4251]
[1772832203495,1.26620745,1974.4,1974.2,1.4251]
[1772832204478,1.26620745,1974.4,1974.2,1.5633997]
[1772832204878,2.78851676,1974.4,1974.2,1.4251]
[1772832208900,2.78851676,1974.4,1974.3,0.0011]
[1772832209194,2.78951676,1974.4,1974.3,0.0011]
[1772832209897,1.52230931,1974.9,1974.3,0.0011]
[1772832211284,1.52230931,1974.7,1974.3,0.0011]
[1772832213504,1.62337001,1974.6,1974.3,0.29696044]
[1772832215698,2.88946207,1974.6,1974.3,0.29696044]
[1772832217805,1.62337001,1974.7,1974.4,0.28296436]
[1772832219712,1.62337001,1974.7,1974.3,0.27763331]
[1772832219915,1.62337001,1974.8,1974.3,0.0011]
[1772832220215,1.52337001,1974.8,1974.3,0.0011]
[1772832220604,1.52337001,1974.8,1974.4,0.0011]
[1772832220800,0.001,1974.6,1974.4,0.0011]
[1772832221007,1.62437001,1974.6,1974.4,0.0011]
[1772832222417,2.89045018,1974.6,1974.4,0.0011]
[1772832222894,1.62337001,1974.5,1974.4,0.0011]
[1772832223212,1.62337001,1974.5,1974.3,0.0011]
[1772832225616,2.88952241,1974.5,1974.3,0.0011]
[1772832229225,1.62337001,1974.5,1974.3,0.0011]
[1772832229406,2.88952243,1974.5,1974.3,0.0011]
[1772832229809,1.26708649,1974.6,1974.3,0.34938422]
[1772832230304,2.8904565,1974.6,1974.3,0.34938422]
[1772832232525,2.8904565,1974.6,1974.4,0.0011]
[1772832232826,0.001,1974.5,1974.4,0.0011]
[1772832241118,1.55733131,1974.4,1973.8,1.426]
[1772832241324,1.55733131,1974.4,1973.9,0.31585907]
[1772832242001,1.55733131,1974.4,1974.0,1.62105696]
[1772832242206,2.85230707,1974.5,1974.1,0.35459293]
[1772832242614,1.58515898,1974.4,1974.1,0.35459293]
[1772832244835,2.85136759,1974.4,1974.2,0.0011]
[1772832245215,2.85236759,1974.4,1974.2,0.0011]
[1772832245416,0.001,1974.4,1974.2,0.34302391]
[1772832250014,0.001,1974.4,1974.2,0.33043958]
[1772832253343,0.001,1974.4,1974.2,1.59676989]
[1772832253544,0.001,1974.4,1974.2,0.33043958]
[1772832253957,0.001,1974.4,1974.2,1.59677316]
[1772832254117,0.001,1974.4,1974.2,0.33043958]
[1772832254552,0.001,1974.4,1974.2,1.59677157]
[1772832254755,0.001,1974.4,1974.2,0.33043958]
[1772832255322,0.001,1974.4,1974.2,1.59676897]
[1772832256420,0.001,1974.4,1974.3,0.30744553]
[1772832256848,0.001,1974.5,1974.4,0.30644553]
[1772832257726,0.001,1974.5,1974.4,1.57265298]
[1772832260362,1.43715898,1974.7,1974.4,1.57265298]
[1772832262268,1.58515898,1974.9,1974.6,2.82848334]
[1772832263251,1.58515898,1975.1,1974.6,2.82848334]
[1772832263841,1.58515898,1975.1,1974.4,1.56240414]
[1772832264036,1.58515898,1974.8,1974.3,4.25863936]
[1772832265755,1.58515898,1974.7,1974.4,1.56240414]
[1772832267760,1.2660792,1974.6,1974.4,1.56240414]
[1772832267959,1.58515898,1974.5,1974.3,1.43]
[1772832269144,1.58515898,1974.5,1974.4,0.0011]
[1772832272560,1.53036801,1974.6,1974.4,0.0011]
[1772832274368,1.53036801,1974.6,1974.2,0.0011]
[1772832274868,1.53036801,1974.5,1974.2,0.0011]
[1772832276633,1.53036801,1974.5,1974.2,1.59380118]
[1772832277731,1.53036801,1974.5,1974.2,2.86011064]
[1772832277936,1.53036801,1974.5,1974.2,1.59380118]
[1772832278544,1.53036801,1974.6,1974.2,2.86012942]
[1772832278971,1.53036801,1974.6,1974.2,0.0011]
[1772832279169,1.26706235,1974.7,1973.9,0.0011]
[1772832279170,0.97941219,1974.3,1973.9,0.0011]
[1772832279369,1.53036801,1973.9,1973.5,1.59270118]
[1772832279563,1.53036801,1974.1,1973.6,1.59270118]
[1772832279871,2.79683204,1974.0,1973.6,1.59270118]
[1772832280371,1.53036801,1973.9,1973.6,2.85941961]
[1772832280976,1.53036801,1973.9,1973.6,1.59270118]
[1772832281271,1.53036801,1973.9,1973.7,0.0011]
[1772832283250,1.53036801,1974.1,1973.7,1.59380118]
[1772832283884,2.79677306,1974.1,1973.7,1.59380118]
[1772832284340,1.53036801,1974.2,1973.7,1.59380118]
[1772832284542,1.53036801,1974.2,1973.9,1.59270118]
[1772832284967,2.79661404,1974.4,1974.0,1.59270118]
[1772832285343,1.53036801,1974.3,1974.0,1.59270118]
[1772832287260,2.79665963,1974.3,1974.0,1.59270118]
[1772832289254,1.26629162,1974.3,1973.9,2.85922282]
[1772832289475,1.26629162,1974.3,1973.9,1.59270118]
[1772832289774,2.79665963,1974.3,1973.9,1.59270118]
[1772832290079,1.53036801,1974.2,1973.8,1.423]
[1772832291571,1.53036801,1974.0,1973.8,1.423]
[1772832291780,1.53036801,1974.0,1973.5,0.0011]
[1772832291964,1.53036801,1973.6,1973.2,0.38286733]
[1772832292172,1.53036801,1973.6,1973.1,1.59270118]
[1772832292671,1.53036801,1973.6,1973.0,1.59270118]
[1772832293790,1.53036801,1973.4,1973.0,2.8597839]
[1772832294278,1.53036801,1973.4,1973.0,1.59270118]
[1772832294489,1.53036801,1973.4,1973.0,2.85980423]
[1772832294670,1.53036801,1973.4,1972.8,6.4929296]
[1772832294671,1.53036801,1973.4,1972.9,1.59270118]
[1772832296196,1.65283535,1973.4,1972.9,1.59270118]
[1772832296706,1.65283535,1973.2,1972.5,1.26739333]
[1772832296989,1.65283535,1973.2,1972.6,1.57817351]
[1772832298178,1.65283535,1973.0,1972.6,1.57817351]
[1772832298765,1.65283535,1973.0,1972.6,2.84553617]
[1772832299494,1.65283535,1973.0,1972.7,1.57817351]
[1772832300265,1.65283535,1972.7,1972.4,1.428]
[1772832301373,1.65283535,1972.7,1972.3,1.57817351]
[1772832301765,1.65283535,1972.7,1972.3,2.84571418]
[1772832302059,1.65283535,1972.7,1972.3,1.57817351]
[1772832302259,1.2672844,1972.8,1972.4,1.55331559]
[1772832302480,1.49835108,1972.8,1972.4,1.55331559]
[1772832303667,1.49835108,1972.9,1972.4,1.55331559]
[1772832304197,2.76558546,1972.8,1972.4,1.55331559]
[1772832304387,1.49835108,1972.7,1972.2,1.55331559]
[1772832304990,1.49835108,1972.8,1972.2,1.55331559]
[1772832306002,1.49835108,1973.1,1972.6,1.55331559]
[1772832306198,1.26710593,1973.0,1972.6,1.55331559]
[1772832306596,2.76545701,1973.0,1972.6,1.55331559]
[1772832306785,1.49835108,1972.9,1972.6,1.55331559]
[1772832307800,1.49835108,1972.9,1972.5,2.82184126]
[1772832308104,1.49835108,1972.9,1972.6,1.55331559]
[1772832308306,1.26707477,1973.1,1972.6,1.55331559]
[1772832308307,1.49835108,1973.1,1972.6,1.55331559]
[1772832308469,1.49835108,1973.1,1972.6,2.82067342]
[1772832308981,1.49835108,1973.1,1972.7,1.55331559]
[1772832310401,2.76532857,1973.2,1972.8,1.55331559]
[1772832310782,1.49835108,1973.1,1972.7,1.55331559]
[1772832312500,2.76539511,1973.1,1972.7,1.55331559]
[1772832313001,2.76539511,1973.1,1972.7,2.8206141]
[1772832313818,1.49835108,1973.1,1972.7,2.8206141]
[1772832314098,1.49835108,1973.1,1972.8,1.55331559]
[1772832314898,1.49835108,1973.1,1972.8,2.82054784]
[1772832315906,1.49835108,1973.1,1972.8,1.55331559]
[1772832316116,1.49835108,1973.1,1972.8,2.82051368]
[1772832316408,1.49835108,1973.2,1972.9,1.55331559]
[1772832318080,1.49835108,1973.2,1972.7,1.26728796]
[1772832318393,1.49835108,1973.2,1972.8,1.55331559]
[1772832318589,1.26704171,1973.1,1972.8,1.55331559]
[1772832318979,2.76539279,1973.1,1972.8,1.55331559]
[1772832320110,1.49835108,1973.0,1972.5,1.55441559]
[1772832320292,1.49835108,1973.0,1972.5,2.82183372]
[1772832320687,2.76552123,1972.9,1972.5,2.82183372]
[1772832321206,2.76552123,1972.9,1972.5,2.82183975]
[1772832321923,1.49835108,1972.8,1972.5,1.55441559]
[1772832323234,1.49835108,1972.7,1972.5,0.0011]
[1772832324291,1.49835108,1972.7,1972.2,0.0011]
[1772832324292,1.49835108,1972.6,1972.2,0.0011]
[1772832325819,2.7657782,1972.5,1972.2,0.0011]
[1772832326016,2.76569763,1972.7,1972.2,1.55441559]
[1772832326520,1.26728714,1972.8,1972.2,1.55441559]
[1772832326725,2.76563822,1972.8,1972.2,1.55441559]
[1772832326895,1.49835108,1972.7,1972.2,1.55441559]
[1772832327400,5.06880972,1972.9,1972.2,1.55441559]
[1772832327401,1.49835108,1972.9,1972.2,1.55441559]
[1772832328104,1.49835108,1972.9,1972.4,1.55331559]
[1772832328417,1.49835108,1973.1,1972.4,1.55331559]
[1772832330416,1.26710593,1973.0,1972.6,1.55331559]
[1772832332322,1.58612552,1973.0,1972.6,1.55331559]
[1772832332536,1.26697749,1973.2,1972.7,1.50487988]
[1772832332537,1.58612552,1973.1,1972.7,1.50487988]
[1772832333948,5.06889868,1973.3,1972.7,1.50487988]
[1772832333949,2.85405439,1973.3,1972.7,1.50487988]
[1772832334099,2.85405351,1973.3,1972.7,1.50487988]
[1772832334302,2.85404834,1973.3,1972.9,1.50487988]
[1772832334504,1.58712552,1973.3,1972.9,1.50487988]
[1772832334752,2.85404605,1973.3,1972.9,1.50487988]
[1772832335337,1.58712552,1973.3,1972.9,1.50487988]
[1772832335644,0.001,1973.3,1972.9,1.50487988]
[1772832336542,0.001,1973.3,1973.0,2.77198581]
[1772832337052,0.001,1973.3,1973.1,1.50487988]
[1772832337848,1.58712552,1973.3,1972.9,1.50487988]
[1772832338050,1.58712552,1973.3,1972.5,0.0011]
[1772832338051,1.58712552,1973.3,1972.7,1.50487988]
[1772832339403,1.58612552,1973.1,1972.5,1.50597988]
[1772832339742,1.58612552,1972.9,1972.5,0.0011]
[1772832341314,2.8533599,1972.8,1972.5,0.0011]
[1772832343234,1.58612552,1972.7,1972.5,0.0011]
[1772832343736,2.85347381,1972.7,1972.5,0.0011]
[1772832347414,2.85347381,1972.7,1972.4,0.0011]
[1772832347415,1.58612552,1972.6,1972.4,0.0011]
[1772832348946,2.85355264,1972.5,1972.2,1.50487988]
[1772832349149,2.85355264,1972.5,1972.1,1.50487988]
[1772832349947,1.58612552,1972.4,1972.1,1.50487988]
[1772832351248,2.85364497,1972.4,1972.1,1.50487988]
[1772832353739,2.85351297,1972.6,1972.2,1.50487988]
[1772832354459,2.85351297,1972.6,1972.2,1.50597988]
[1772832354653,0.001,1972.5,1972.2,1.50597988]
[1772832355365,1.58712552,1972.5,1972.2,1.50597988]
[1772832355565,1.26749138,1972.4,1972.2,1.50597988]
[1772832357962,0.001,1973.0,1972.4,2.65500786]
[1772832358142,1.49416598,1973.0,1972.5,1.45270764]
[1772832359976,1.49416598,1973.0,1972.6,1.26736287]
[1772832360154,0.001,1973.0,1972.7,1.45270764]
[1772832361577,0.001,1973.3,1972.8,1.45270764]
[1772832362442,0.001,1973.3,1972.9,1.51008239]
[1772832362639,1.48059487,1973.3,1972.9,1.51008239]
[1772832363064,0.001,1973.3,1972.9,1.51008239]
[1772832364975,0.001,1973.3,1973.1,1.51008239]
[1772832366175,0.001,1973.3,1973.0,2.77718832]
[1772832367384,0.001,1973.2,1973.0,2.77828832]
[1772832368357,1.48059487,1973.2,1973.0,0.0011]
[1772832368961,1.48059487,1973.2,1973.0,1.2682047]
[1772832369570,1.48059487,1973.2,1973.0,0.0011]
[1772832375604,0.001,1973.2,1973.0,1.51118239]
[1772832376395,0.001,1973.2,1973.1,1.26704171]
[1772832378420,0.001,1973.2,1973.0,2.77823652]
[1772832379899,0.001,1973.2,1973.0,1.26815413]
[1772832380909,0.001,1973.2,1973.0,1.51118239]
[1772832383516,1.48059487,1973.2,1973.0,0.0011]
[1772832384900,0.001,1973.2,1973.0,0.0011]
[1772832387311,1.48059487,1973.2,1973.0,0.0011]
[1772832387619,1.48059487,1973.2,1972.9,0.0011]
[1772832389220,1.47959487,1973.1,1972.9,0.0011]
[1772832389801,1.47959487,1973.1,1972.2,0.0011]
[1772832389994,1.47959487,1972.5,1972.3,0.40968961]
[1772832390198,1.47959487,1972.5,1972.2,0.0011]
[1772832390421,1.47959487,1972.5,1971.7,2.77797972]
[1772832391329,1.47959487,1972.3,1971.8,1.51008239]
[1772832391994,1.47959487,1972.3,1971.7,1.26789733]
[1772832392200,1.47959487,1972.3,1971.7,2.69189733]
[1772832393498,1.47959487,1972.3,1971.3,5.07231163]
[1772832393499,0.98159344,1971.8,1970.8,1.3878261]
[1772832393727,1.50074778,1971.9,1970.8,1.3878261]
[1772832395632,1.50074778,1971.7,1971.0,1.3878261]
[1772832396664,1.50074778,1972.1,1971.0,1.3878261]
[1772832396869,1.50074778,1972.3,1971.0,1.3878261]
[1772832397680,1.50074778,1972.3,1971.2,1.3878261]
[1772832397844,1.50074778,1972.5,1971.4,1.3878261]
[1772832399064,1.50074778,1972.7,1971.4,1.3878261]
[1772832399363,1.50074778,1972.6,1971.4,1.3878261]
[1772832400071,1.50074778,1972.4,1971.6,1.3878261]
[1772832401979,1.50074778,1972.4,1971.7,1.26794137]
[1772832402144,1.50074778,1972.3,1971.7,2.65576747]
[1772832403253,1.50074778,1972.3,1971.6,2.65578775]
[1772832404194,1.50074778,1972.3,1971.8,2.65570316]
[1772832405200,2.76931208,1972.3,1971.8,2.65570316]
[1772832405407,1.50074778,1972.2,1971.8,2.65570316]
[1772832407421,1.50074778,1972.1,1971.7,1.26789479]
[1772832407619,1.50074778,1972.1,1971.6,2.6557813]
[1772832408282,1.50074778,1972.1,1971.6,2.655787]
[1772832408786,1.50074778,1972.1,1971.5,6.48323729]
[1772832408787,1.50074778,1971.9,1971.5,1.3889261]
[1772832408981,1.50074778,1971.9,1971.5,2.65696292]
[1772832409779,3.84,1972.1,1971.6,1.3878261]
[1772832411085,0.001,1972.3,1971.8,1.3878261]
[1772832413024,0.001,1972.3,1972.0,1.3878261]
[1772832413208,0.001,1972.3,1972.1,1.3878261]
[1772832413600,1.50074778,1972.9,1972.1,1.3878261]
[1772832415307,1.50074778,1972.9,1972.3,1.3878261]
[1772832416898,1.26806448,1973.1,1972.3,1.3878261]
[1772832417104,0.001,1973.1,1972.3,1.3878261]
[1772832417431,0.001,1973.1,1972.5,1.41561901]
[1772832417734,0.001,1973.1,1972.6,1.41561901]
[1772832418137,0.001,1972.8,1972.6,1.41561901]
[1772832419944,0.001,1972.8,1972.7,2.68291763]
[1772832423429,0.001,1973.1,1972.8,1.32216537]
[1772832424433,0.001,1973.1,1972.9,1.26717015]
[1772832425139,0.001,1973.1,1972.8,2.58934697]
[1772832427561,0.001,1973.1,1972.9,1.32216537]
[1772832429464,0.001,1973.1,1972.9,2.58927461]
[1772832429847,0.001,1973.1,1972.9,2.59037461]
[1772832430163,0.001,1973.0,1972.9,2.59037461]
[1772832430738,0.001,1973.0,1972.9,4.05037461]
[1772832437081,1e-08,1973.3,1973.0,1.4149446]
[1772832441893,0.15024469,1973.5,1973.2,1.4149446]
[1772832443694,0.001,1973.4,1973.2,1.4149446]
[1772832444400,0.001,1973.4,1973.3,1.4149446]
[1772832444584,0.001,1973.4,1973.2,1.26696049]
[1772832446585,0.001,1973.4,1973.2,2.68190509]
[1772832447077,0.001,1973.4,1973.3,1.4149446]
[1772832449316,0.001,1973.4,1973.3,2.68185789]
[1772832449809,0.001,1973.4,1973.3,1.4149446]
[1772832451412,0.001,1973.4,1973.3,2.68185789]
[1772832452696,0.001,1973.4,1973.3,1.4149446]
[1772832452900,0.10610414,1973.4,1973.1,2.68307479]
[1772832453217,0.001,1973.4,1973.2,1.4149446]
[1772832453602,0.10151376,1974.1,1973.4,1.4149446]
[1772832455634,1.26646403,1974.0,1973.5,1.26678489]
[1772832455805,1.3618294,1974.1,1973.6,1.4144446]
[1772832456122,1.36179787,1974.1,1973.6,1.4144446]
[1772832456692,0.001,1974.2,1973.6,1.4144446]
[1772832457691,0.001,1974.2,1973.8,1.41063363]
[1772832457904,0.001,1974.2,1974.0,1.41063363]
[1772832459822,0.001,1974.2,1974.1,1.41063363]
[1772832463930,0.001,1974.2,1974.0,1.26646342]
[1772832463931,0.001,1974.5,1974.2,1.41013363]
[1772832466258,0.07024558,1974.5,1974.2,1.41013363]
[1772832467121,0.001,1974.4,1974.2,1.41013363]
[1772832469460,0.05672759,1974.4,1974.0,1.41013363]
[1772832471972,0.05672759,1974.4,1974.1,1.41013363]
[1772832472183,0.001,1974.4,1974.1,1.41013363]
[1772832472369,0.001,1974.5,1974.2,1.40963363]
[1772832472748,0.001,1974.5,1974.0,2.70807509]
[1772832472976,0.001,1974.5,1974.1,1.44163501]
[1772832478049,0.001,1974.5,1974.2,1.44807373]
[1772832478873,0.001,1974.5,1974.2,1.44917373]
[1772832479080,0.001,1974.4,1974.2,1.44917373]
[1772832480765,0.001,1974.4,1974.2,0.0011]
[1772832481679,0.001,1974.4,1974.2,1.44328491]
[1772832487083,0.001,1974.4,1974.3,1.44218491]
[1772832488989,0.001,1974.4,1974.3,2.70845649]
[1772832490694,0.001,1974.4,1974.2,0.0011]
[1772832491159,0.001,1974.4,1974.2,1.26742819]
[1772832492481,0.001,1974.4,1974.3,0.0011]
[1772832493766,0.001,1974.4,1974.3,1.44328491]
[1772832493966,0.001,1974.4,1974.3,0.0011]
[1772832496790,0.001,1974.4,1974.3,1.44328491]
[1772832501574,0.001,1974.4,1974.3,2.70955649]
[1772832504897,0.001,1974.7,1974.4,1.44137885]
[1772832505199,0.001,1974.7,1974.5,2.91527885]
[1772832506576,0.001,1974.7,1974.6,1.2660792]
[1772832506775,0.001,1974.7,1974.6,2.70635805]
[1772832516797,0.001,1974.7,1974.6,2.70745805]
[1772832516999,5.10572297,1975.2,1974.7,1.44484095]
[1772832519834,5.10572297,1975.2,1974.8,1.26595098]
[1772832520828,5.10572297,1975.2,1974.6,0.0011]
[1772832521413,5.10572297,1975.2,1974.6,1.26717488]
[1772832522204,5.10572297,1975.2,1974.6,0.0011]
[1772832527225,3.84,1975.1,1974.6,0.0011]
[1772832529012,1.26582278,1975.0,1974.6,0.0011]
[1772832530120,5.10582278,1975.0,1974.6,0.0011]
[1772832540892,5.10582278,1975.0,1974.7,0.0011]
[1772832541094,5.10682278,1975.0,1974.7,0.0011]
[1772832542394,5.10683775,1975.0,1974.7,1.46368981]
[1772832544996,3.841,1975.0,1974.8,1.46258981]
[1772832545199,0.001,1975.0,1974.8,1.46258981]
[1772832545902,1.26688242,1975.0,1974.8,1.46258981]
[1772832546701,1.26688242,1975.0,1974.7,0.0011]
[1772832546902,0.001,1975.0,1974.7,0.0011]
[1772832548306,3.841,1975.0,1974.7,0.0011]
[1772832549402,1.26588688,1974.9,1974.7,0.0011]
[1772832549606,1.26588688,1974.9,1974.6,0.0011]
[1772832551196,5.10588688,1974.9,1974.6,0.0011]
[1772832553186,5.10588688,1974.9,1974.7,0.0011]
[1772832553385,5.10588688,1974.9,1974.6,0.0011]
[1772832553386,5.10688688,1974.9,1974.6,0.0011]
[1772832559517,1.15603447,1974.8,1974.4,1.23816951]
[1772832560895,1.15603447,1974.8,1974.4,0.0011]
[1772832561098,1.19706467,1974.7,1974.2,1.23816951]
[1772832561313,2.49269904,1974.6,1974.2,1.23816951]
[1772832565143,2.49269904,1974.6,1974.3,0.0011]
[1772832565842,2.49269904,1974.6,1974.3,1.23816951]
[1772832568440,2.49269308,1974.7,1974.3,1.23816951]
[1772832569551,2.49269308,1974.7,1974.4,1.23706951]
[1772832572152,0.001,1974.8,1974.3,0.0011]
[1772832572462,2.59989448,1974.8,1974.5,1.29862064]
[1772832572751,0.001,1974.8,1974.5,1.29862064]
[1772832572954,1.26695603,1974.8,1974.5,1.29862064]
[1772832573524,0.001,1974.8,1974.5,1.29862064]
[1772832575239,0.001,1974.9,1974.6,1.29862064]
[1772832576526,0.001,1974.9,1974.6,1.29972064]
[1772832576725,0.001,1974.8,1974.6,1.29972064]
[1772832578482,0.001,1974.8,1974.7,1.29862064]
[1772832578983,0.001,1974.9,1974.8,1.29862064]
[1772832579188,0.001,1975.0,1974.7,1.29862064]
[1772832581585,0.001,1975.0,1974.8,1.29862064]
[1772832583961,1.33394093,1975.0,1974.6,0.0011]
[1772832584167,2.59982138,1975.0,1974.6,1.29972064]
[1772832585062,2.59982138,1975.0,1974.7,1.29862064]
[1772832590697,0.001,1974.9,1974.7,1.29862064]
[1772832596733,1.27062965,1974.9,1974.6,0.0011]
[1772832597232,1.26595098,1974.8,1974.6,1.20465264]
[1772832597730,2.53651653,1974.9,1974.6,1.20465264]
[1772832598030,0.001,1974.9,1974.6,1.20465264]
[1772832598897,0.001,1975.0,1974.7,1.20355264]
[1772832599100,1.27062965,1975.0,1974.6,0.0011]
[1772832599831,1.27062965,1975.0,1974.6,1.20465264]
[1772832600528,1.27062965,1975.0,1974.6,2.47071117]
[1772832600831,1.27062965,1975.0,1974.6,2.47072642]
[1772832601147,1.27062965,1975.0,1974.4,0.0011]
[1772832601148,2.53570885,1974.6,1974.4,0.0011]
[1772832601304,1.26962965,1974.5,1974.4,0.0011]
[1772832601626,2.53569329,1974.7,1974.4,0.0011]
[1772832601927,2.53569329,1974.7,1974.4,1.20465264]
[1772832602429,1.26606364,1974.7,1974.4,1.20465264]
[1772832605542,2.5946486,1974.7,1974.4,1.20465264]
[1772832609116,1.32858496,1974.6,1974.4,0.0011]
[1772832613350,2.59466416,1974.6,1974.5,0.0011]
[1772832613650,2.59566416,1974.6,1974.5,0.0011]
[1772832613945,1.2670792,1974.6,1974.5,0.0011]
[1772832614139,1.26600114,1974.8,1974.6,1.29742362]
[1772832614442,6.39326584,1974.9,1974.6,1.29742362]
[1772832614443,2.59551841,1974.9,1974.6,1.29742362]
[1772832614614,0.001,1974.9,1974.6,1.29742362]
[1772832614814,1.26690321,1974.9,1974.6,1.29742362]
[1772832615320,2.59548817,1974.9,1974.6,1.29742362]
[1772832616436,0.001,1974.9,1974.7,1.29742362]
[1772832619157,0.001,1975.1,1974.8,1.29742362]
[1772832619448,0.001,1975.3,1974.9,1.29742362]
[1772832619449,1.26666154,1975.3,1974.9,1.29742362]
[1772832620250,0.001,1975.3,1974.9,1.29742362]
[1772832621156,0.001,1975.3,1975.1,1.29742362]
[1772832625647,2.59521549,1975.3,1975.0,0.13902043]
[1772832625873,1.32858496,1975.2,1974.8,0.0011]
[1772832626152,1.32958496,1975.2,1974.8,0.0011]
[1772832626929,1.32958496,1975.2,1974.7,0.0011]
[1772832627947,1.32858496,1975.0,1974.7,0.0011]
[1772832630062,1.32858496,1974.8,1974.3,0.0011]
[1772832630441,1.32858496,1974.8,1974.3,0.00209632]
[1772832630958,1.32858496,1974.8,1974.3,0.0011]
[1772832632162,1.26601509,1974.7,1974.3,0.0011]
[1772832632330,1.35101781,1974.6,1974.3,0.0011]
[1772832634985,1.26614332,1974.5,1974.3,0.0011]
[1772832635977,1.35101781,1974.4,1974.3,0.0011]
[1772832636163,1.35101781,1974.4,1974.2,0.0011]
[1772832637851,1.26627158,1974.3,1974.2,0.0011]